Cogmind - Beta 16 @@@ ROGUE MODE // 2025.10.22 @ 23:11:50 Player: FUMI Result: Self-destructed Performance ------------- Evolutions (2) 1000 Regions Visited (3) 600 Robots Destroyed (31) 155 Value Destroyed (993) 993 Prototype IDs (0) 0 Alien Tech Used (0) 0 Bonus (0) 0 TOTAL SCORE: 2748 Bonus ------- None Cogmind --------- Core Integrity 470/550 Matter 282/300 Energy 265/265 System Corruption 0% Temperature Cool (0) Movement Walking (190) Ox1 Location -8/Materials Parts ------- > --- POWER (1) -------- Reinforced Ion Engine > --- PROPULSION (4) --- Aluminum Leg Aluminum Leg Aluminum Leg > --- UTILITY (3) ------ Large Storage Unit Improved Targeting Computer Utility Shielding > --- WEAPON (3) ------- Light Assault Rifle Autogun Autogun > --- INVENTORY (15) --- Reinforced Ion Engine Light Nuclear Core Light Nuclear Core Heat Sink Disposable Heat Sink Medium Storage Unit Terrain Scan Processor Hardened Light Armor Plating Improved Light Armor Plating Beam Rifle Heavy Particle Cannon Heavy Assault Rifle Katana Peak State ------------ > --- POWER ------------ Reinforced Ion Engine > --- PROPULSION ------- Aluminum Leg Aluminum Leg Aluminum Leg Aluminum Leg > --- UTILITY ---------- Large Storage Unit Improved Targeting Computer Utility Shielding > --- WEAPON ----------- Light Assault Rifle Autogun Autogun > --- INVENTORY -------- Reinforced Ion Engine Light Nuclear Core Light Nuclear Core Aluminum Leg Heat Sink Disposable Heat Sink Medium Storage Unit Terrain Scan Processor Hardened Light Armor Plating Improved Light Armor Plating Beam Rifle Heavy Particle Cannon Heavy Assault Rifle Katana [Rating: 18] Favorites ----------- Power Reinforced Ion Engine Engine Reinforced Ion Engine Power Core Light Nuclear Core Propulsion Aluminum Leg Leg Aluminum Leg Utility Small Storage Unit Device Shield Generator Storage Small Storage Unit Processor Targeting Computer Protection Utility Shielding Weapon Light Assault Rifle Energy Gun Small Laser Ballistic Gun Light Assault Rifle Special Melee Weapon Datajack Build | -11 -10 -9 -8 ------- Run | Yrd Mat Mat Mat Slots Evolved 4 | . . 2 2 Power . | . . . . Propulsion 2 | . . 1 1 Utility 1 | . . 1 . Weapon 1 | . . . 1 Parts Attached 31 | 6 4 18 3 Power 3 | 1 1 1 . Engine 2 | 1 . 1 . Core 1 | . 1 . . Reactor . | . . . . Propulsion 10 | 2 . 6 2 Treads . | . . . . Leg 10 | 2 . 6 2 Wheel . | . . . . Hover . | . . . . Flight . | . . . . Utility 7 | 1 1 4 1 Device 1 | . . 1 . Storage 3 | 1 . 1 1 Processor 2 | . 1 1 . Hackware . | . . . . Protection 1 | . . 1 . Artifact . | . . . . Weapon 11 | 2 2 7 . Energy Gun 4 | 1 . 3 . Energy Cannon . | . . . . Ballistic Gun 6 | 1 1 4 . Ballistic Cannon . | . . . . Launcher . | . . . . Special Weapon . | . . . . Impact Weapon . | . . . . Slashing Weapon . | . . . . Piercing Weapon . | . . . . Special Melee Weapon 1 | . 1 . . Unidentified Prototypes . | . . . . Parts Lost 7 | . . 5 2 Power . | . . . . Propulsion 5 | . . 3 2 Utility 1 | . . 1 . Weapon 1 | . . 1 . Highest Loss Streak 2 | . . 2 2 To Critical Strikes . | . . . . Average Backups 7 | . 5 8 11 Power 1 | . 1 1 2 Propulsion . | . . 1 . Utility 1 | . . 2 4 Weapon 2 | . 1 3 3 Tool/Special . | . . . . Unused Backups 16 | . 1 4 11 Power 3 | . . 1 2 Propulsion . | . . . . Utility 7 | . . 2 5 Weapon 6 | . 1 1 4 Tool/Special . | . . . . Average Slot Usage (%) 96 | . 94 97 99 Engine 8 | . 7 9 9 Core 3 | . 6 1 . Leg 31 | . 28 32 35 Storage 11 | . 14 11 9 Processor 9 | . 8 11 9 Protection 5 | . . 8 9 Energy Gun 9 | . 14 7 . Ballistic Gun 15 | . 14 13 26 Peak Build Rating 18 | 6 9 14 18 Average Rating 11 | 4 7 12 17 On Entrance 7 | . 6 9 14 Avg Prop Armor Cover (%) . | . . . . Naked Turns . | . . . . Heaviest Build 38 | 11 13 27 38 Greatest Support 40 | 20 20 33 40 Greatest Overweight (x) 1 | . . 1 1 Average Overweight (x) . | . . . . Largest Inventory Capacity 15 | 8 8 10 15 Average Capacity 9 | 7 8 9 12 Most Carried 14 | 2 8 10 14 Average Carried 7 | 1 5 8 11 Final Capacity 15 | 8 8 10 15 Final Carried 13 | 2 8 10 13 Class Distribution -------------------- 75% | Mutant 12% | Scavenger-Mutant 10% | Scavenger-Gunner Dominant Class ---------------- Mutant | -10/Materials Mutant | -9/Materials Scavenger-Gunner | -8/Materials Resources | -11 -10 -9 -8 ----------- Run | Yrd Mat Mat Mat Matter Collected 786 | 168 149 330 139 Remotely . | . . . . Salvage Created 1242 | . 224 774 244 Parts 81 | . 14 51 16 Haulers Intercepted . | . . . . Recyclers Shooed . | . . . . Parts Field Recycled . | . . . . Retrieved Matter . | . . . . Parts Self-Destructed . | . . . . Prevented . | . . . . Parts Restored . | . . . . Kills | -11 -10 -9 -8 ------- Run | Yrd Mat Mat Mat Combat Hostiles Destroyed 30 | . 5 19 6 Guns 30 | . 5 19 6 Classes Destroyed 6 | . 1 4 1 Recycler 1 | . . . 1 Swarmer 6 | . . 2 4 Grunt 18 | . 5 12 1 Brawler 1 | . . 1 . Duelist 1 | . . 1 . Sentry 4 | . . 3 1 Best Kill Streak 7 | . 3 3 7 Combat Bots Only 6 | . 3 3 6 Max Kills in Single Turn 1 | . 1 1 1 Gunslinging . | . . . . Exploded . | . . . . Melee . | . . . . Uniques/NPCs Destroyed . | . . . . Combat | -11 -10 -9 -8 -------- Run | Yrd Mat Mat Mat Hostile Shots Fired 179 | . 31 100 48 Missed 46 | . 11 24 11 Hits 133 | . 20 76 37 Melee 10 | . . 10 . Projectile 123 | . 20 66 37 Critical Strikes 7 | . . 6 1 Damage Taken 1782 | . 277 1097 408 Core 555 | . 99 376 80 Absorbed by Shields 62 | . . 62 . Redirected to Shielding 7 | . . 7 . Core Remaining (%) 55 | 100 60 6 . Volleys Fired 87 | . 19 55 13 Largest 3 | . 2 2 3 Hottest 85 | . 60 85 66 Shots Fired 176 | . 38 99 39 Gun 176 | . 38 99 39 Cannon . | . . . . Launcher . | . . . . Special . | . . . . Kinetic 117 | . 19 59 39 Thermal 48 | . 19 29 . Explosive . | . . . . Electromagnetic 11 | . . 11 . Robot Hit Streak 24 | . 8 24 13 Robot Miss Streak 5 | . 2 5 3 Penetration Max . | . . . . Secondary Targets 7 | . 1 3 3 Max Gunslinging Chain 1 | . 1 1 1 Shots Hit Robots 131 | . 27 84 20 Core Hits 66 | . 12 43 11 Critical Kills 1 | . . 1 . Critical Parts Destroyed . | . . . . Critical Strikes 1 | . . 1 . Destroy 1 | . . 1 . Melee Attacks . | . . . . Impact . | . . . . Slashing . | . . . . Piercing . | . . . . Sneak Attacks . | . . . . Combat Hostiles . | . . . . Follow-up Attacks . | . . . . Damage Inflicted 1544 | . 324 963 257 Guns 1523 | . 324 953 246 Cannons . | . . . . Explosions . | . . . . Melee . | . . . . Ramming 21 | . . 10 11 Kinetic 930 | . 167 517 246 Thermal 489 | . 157 332 . Explosive . | . . . . Electromagnetic 104 | . . 104 . Impact . | . . . . Slashing . | . . . . Piercing . | . . . . Highest Corruption . | . . . . Average Corruption . | . . . . Corruption Purged . | . . . . Corruption Blocked . | . . . . Overload Shots . | . . . . Overflow Damage . | . . . . Projectiles . | . . . . Explosions . | . . . . Melee . | . . . . Knockbacks . | . . . . Impact . | . . . . Kinetic . | . . . . Secondary . | . . . . Self-Inflicted Damage . | . . . . Shots . | . . . . Rammed . | . . . . Targets Rammed 6 | . . 5 1 Kicked 6 | . . 5 1 Crushed . | . . . . Highest Temperature 270 | . 63 270 71 Average Temperature 69 | . 29 93 32 Received Heat Transfer 660 | . 150 384 126 Effects 3 | . . 3 . Interference 3 | . . 3 . Siege Activations . | . . . . Martial Activations . | . . . . Shielding Activations . | . . . . Robots Disrupted . | . . . . Combat Hostiles . | . . . . Robots Corrupted . | . . . . Combat Hostiles . | . . . . Parts Fried . | . . . . Impact Corruptions . | . . . . Robots Melted . | . . . . Combat Hostiles . | . . . . Parts Melted 1 | . . 1 . Heat Transferred 970 | . 350 620 . Parts Sabotaged . | . . . . Parts Stolen . | . . . . Parts Stripped . | . . . . Power Chain Reactions . | . . . . Alert | -11 -10 -9 -8 ------- Run | Yrd Mat Mat Mat Maximum Alert Level 1 | . . 1 . Low Security (%) 97 | 100 100 94 100 Level 1 2 | . . 5 . Level 2 . | . . . . Level 3 . | . . . . Level 4 . | . . . . Level 5 . | . . . . High Security . | . . . . Max Security . | . . . . Peak Influence 210 | . 101 210 120 Initial 60 | . . . 60 Average 71 | . 23 113 41 Influence Increases 821 | . 131 530 160 Destroy 0b10 Robot/C 600 | . 100 380 120 Destroy 0b10 Robot/NC 5 | . . . 5 Destroy Leader 140 | . 30 90 20 Destroy Structure 1 | . 1 . . Lose Combat Pursuer 75 | . . 60 15 Influence Decreases 711 | . 131 386 194 Entered New Map 84 | . . . 84 Time Decay 557 | . 131 336 90 Lost Part 70 | . . 50 20 Squads Dispatched 4 | . 1 2 1 Investigation . | . . . . Extermination . | . . . . Reinforcement 4 | . 1 2 1 Assault . | . . . . Garrison . | . . . . Intercept . | . . . . Searches Triggered . | . . . . Construction Impeded . | . . . . Haulers Reinforced . | . . . . Active Scanning Responses . | . . . . Cargo Convoy Interrupts . | . . . . Stealth | -11 -10 -9 -8 --------- Run | Yrd Mat Mat Mat Distress Signals 2 | . . 1 1 Communications Jammed . | . . . . Distress Signals . | . . . . Times Spotted 45 | . 7 28 10 Peak Tracking Total 7 | . 3 7 7 Tactical Retreats 4 | . . 3 1 Traps | -11 -10 -9 -8 ------- Run | Yrd Mat Mat Mat Traps Triggered . | . . . . Indirectly . | . . . . Trap Hack Attempts . | . . . . Triggered . | . . . . Disarmed . | . . . . Reprogrammed . | . . . . Reused . | . . . . Traps Extracted . | . . . . Installed . | . . . . Triggered . | . . . . Machines | -11 -10 -9 -8 ---------- Run | Yrd Mat Mat Mat Machines Disabled . | . . . . Max in Single Turn . | . . . . Machines Repaired . | . . . . Machines Dismantled . | . . . . Machines Sabotaged . | . . . . Overloaded Fab Kills . | . . . . Hacking | -11 -10 -9 -8 --------- Run | Yrd Mat Mat Mat Machines Accessed 7 | . 4 2 1 Terminals 3 | . 1 1 1 Fabricators . | . . . . Repair Stations 1 | . 1 . . Recycling Units 2 | . 2 . . Scanalyzers 1 | . . 1 . Garrison Access . | . . . . Total Hacks 7 | . 4 2 1 Successful 2 | . 1 1 . Failed 5 | . 3 1 1 Catastrophic 2 | . 1 1 . Database Lockouts . | . . . . Manual 3 | . 1 1 1 Terminals 3 | . 1 1 1 Fabricators . | . . . . Repair Stations 1 | . 1 . . Recycling Units 2 | . 2 . . Scanalyzers 1 | . . 1 . Garrison Access . | . . . . Terminal Hacks . | . . . . Fabricator Hacks . | . . . . Repair Station Hacks . | . . . . Recycling Unit Hacks 1 | . 1 . . Recycle Component 1 | . 1 . . Scanalyzer 1 | . . 1 . Retrieve Study 1 | . . 1 . Garrison Access Hacks . | . . . . Unauthorized Hacks . | . . . . Terminals . | . . . . Fabricators . | . . . . Repair Stations . | . . . . Recycling Units . | . . . . Scanalyzers . | . . . . Garrison Access . | . . . . Data Cores Recovered . | . . . . Used . | . . . . Hacking Detections 2 | . 1 1 . Full Trace Events . | . . . . Feedback Events . | . . . . Feedback Blocked . | . . . . Robot Schematics Acquired . | . . . . Robots Built . | . . . . Authchips . | . . . . Time . | . . . . Total Robot Build Rating . | . . . . Part Schematics Acquired . | . . . . Parts Built . | . . . . Authchips . | . . . . Time . | . . . . Total Part Build Rating . | . . . . Part Studies Acquired 1 | . . 1 . Parts Repaired . | . . . . Time . | . . . . Parts Recycled 1 | . 1 . . Recycled Matter . | . . . . Retrieved Matter . | . . . . Retrieved Components . | . . . . Parts Scanalyzed . | . . . . Part Schematics Acquired . | . . . . Parts Damaged . | . . . . Bothacking | -11 -10 -9 -8 ------------ Run | Yrd Mat Mat Mat Used RIF Installer . | . . . . Robots Hacked . | . . . . Non-combat . | . . . . Combat . | . . . . Robot Hacks Applied . | . . . . Relay Couplers Released . | . . . . Fabnet Peak Effective % . | . . . . Robots Rewired . | . . . . Allies Hacked . | . . . . Hacks Repelled . | . . . . Allies | -11 -10 -9 -8 -------- Run | Yrd Mat Mat Mat Total Allies . | . . . . Largest Group . | . . . . Highest-Rated Group . | . . . . Highest-Rated Ally . | . . . . Total Orders . | . . . . Ally Attacks . | . . . . Total Damage . | . . . . Kills . | . . . . Allies Corrupted . | . . . . Allies Melted . | . . . . Intel | -11 -10 -9 -8 ------- Run | Yrd Mat Mat Mat Active Infowar (turns) . | . . . . Robot Analysis Total . | . . . . Derelict Logs Recovered . | . . . . Drone Launches . | . . . . Drone Recoveries . | . . . . Exploration | -11 -10 -9 -8 ------------- Run | Yrd Mat Mat Mat Turns Passed 1745 | 58 580 911 196 Spaces Moved 1129 | 43 402 569 115 Core 5 | 5 . . . Treads . | . . . . Legs 1124 | 38 402 569 115 Wheels . | . . . . Hover . | . . . . Flight . | . . . . Fastest Speed 50 | 50 120 120 120 Average Speed 120 | 111 120 120 122 Slowest Speed 190 | 120 120 190 190 Overloaded Moves . | . . . . Propulsion Burnouts . | . . . . Robots Hopped . | . . . . Potential Cave-ins . | . . . . Cave-ins Triggered . | . . . . Exploration Rate (%) 31 | 4 59 53 10 Regions Visited 3 Branch Regions . Pre-discovered Areas . | . . . . Known Exits Taken . | . . . . Unknown Exits Taken 3 | 1 1 1 . Scrap Searched . | . . . . Spaces Dug . | . . . . Terrain Destroyed . | . . . . Melee . | . . . . Projectile . | . . . . AOE . | . . . . Terrain Rammed . | . . . . Walls Destroyed . | . . . . Machines Disabled . | . . . . Actions | -11 -10 -9 -8 --------- Run | Yrd Mat Mat Mat Total 1363 | 50 462 703 148 Wait 57 | . 21 28 8 Move 1126 | 42 401 568 115 Hop . | . . . . Pick Up 32 | 2 10 15 5 Fast Attach 12 | 6 2 4 . Attach 12 | . 1 8 3 Detach 1 | . 1 . . Swap 12 | . 2 8 2 Drop 18 | . 5 12 1 Fire 87 | . 19 55 13 Melee . | . . . . Ram . | . . . . Kick 6 | . . 5 1 Crush . | . . . . Escape Stasis . | . . . . Rewire . | . . . . Trap . | . . . . Miscellaneous . | . . . . Route ------- -11/Scrapyard -10/Materials (discovered 3 exits: *Mat x2 / [*Min]) -9/Materials -8/Materials History --------- Turn | Location | Event 5 | -11/Scrapyard | Discovered new exit (range 15) 59 | -11/Scrapyard | Entered Materials 231 | -10/Materials | Discovered new exit (range 9) 270 | -10/Materials | Discovered new exit (range 15) 310 | -10/Materials | Build established: Mutant 532 | -10/Materials | Discovered new exit (range 5) 639 | -10/Materials | Entered another Materials area 639 | -9/Materials | Evolved 2 slots: Propulsion x1, Utility x1 918 | -9/Materials | Core integrity fell below 50% 1296 | -9/Materials | Core integrity fell below 20% 1544 | -9/Materials | Discovered new exit (range 3) 1550 | -9/Materials | Entered another Materials area 1550 | -8/Materials | Evolved 2 slots: Propulsion x1, Weapon x1 1746 | -8/Materials | Self-destructed Last Messages --------------- 01695_ Acquired 56 matter. 01700_ Acquired 9 matter. 01702_ Y-45 Defender destroyed. 01703_ Acquired 9 matter. 01706_ Acquired Lgt. Nuclear Core. 01718_ S-10 Pest destroyed. 01718_ Switching to secondary target: S-10 Pest. 01723_ S-10 Pest destroyed. 01726_ Acquired 10 matter. 01730_ S-10 Pest destroyed. 01730_ Switching to secondary target: G-47 Trooper. 01731_ Acquired 19 matter. 01731_ Aluminum Leg destroyed. 01732_ S-10 Pest destroyed. 01732_ Switching to secondary target: Y-45 Defender. 01733_ Acquired 16 matter. 01734_ Critical hit (Burn: +37). 01738_ Aluminum Leg destroyed. 01745_ ALERT: Hostiles spotted, dispatching reinforcements to Terminal M004. Map ----- +----------------------------------------------------+ | ?????????????????????????????????????????????????? | | ?????????????????????????????????????????????????? | | ?????????????????????????????????????????????????? | | ?????????????????????????????????????????????????? | | ?????????????????????????????????????????????????? | | ?????????????????????????????????????????????????? | | ?????????????????????????????????????????????????? | | ?????????????????????????????????????????????????? | | ?????????????????????????????????????????????????? | | ?????????????????????????????????????????????????? | | ?????????????????????????????????????????????????? | | ?????????????????????????????????????????????????? | | ?????????????????????????????????????????????????? | | ?????????????????????????????????????????????????? | | ?????????????????????????????????????????????????? | | ?????????????????????????????????????????????????? | | ?????????????????????????????????????????????????? | | ???????????????????#######???????????????????????? | | ???????????????????# ! #???????????????????????? | | ?????????????????### ???????????????????????? | | ?????????????????? " ???????????????????????? | | ???????????????????# ????????????????????????? | | ???????????????????# ????????????????????????? | | ????????????????????# ###########??????????????? | | ????????????????????# # * #??????????????? | | ????????????????????# /@ #??????????????? | | ????????????????????# # ] #??????????????? | | ????????????????????# # """ #??????????????? | | ????????????????????# = # """"" #??????????????? | | ?????????????########*[=# """"" #??????????????? | | ???????+ =%= !%# """""??????????????????? | | ?????????????########=[!# """ ??????????????????? | | ????????????????????#* ####?????????????????????? | | ????????????????????# #########????????????????? | | ????????????????????# #! !! #????????????????? | | ????????????????????# %+% #????????????????? | | ????????????????????# =#= #????????????????? | | ????????????????????# ####+####????????????????? | | ???????????????????#= ??# #???????????????????? | | ???????????????????# ??# #??????????#######??? | | ?????????????????? ??# #??????????# #### | | ?????????????????### #?# #??????????# | | ???????????????????# #?#%#??????????# | | ???????????????????#######?# #??????????# | | ???????????????????????????# #??????????# #### | | ???????????????????????????# #????????#####+#####? | | ???????????????????????????# #????????# #? | | ???????????????????????????# #????????# #? | | ???????????????????????????# #????????# """ """ #? | | ???????????????????????????# #????????# """ """ #? | +----------------------------------------------------+ Best States ------------- Heat Dissipation 31 Energy Generation 14 Energy Capacity 265 Matter Stores 300 Matter Capacity 300 Sight Range 16 Terrain Scan Density 10 Utility Shielding 33 Evasion (%) 55 Targeting Accuracy 6 Item Schematics ----------------- None Robot Schematics ------------------ None Fabricated ------------ Nothing Repaired ---------- Nothing Studied --------- Sml. Laser | -9/Materials | Hacked Alien Tech Used ----------------- None Achievements -------------- DATA ERROR: Steam Global Achievement% For Emergencies Only Item+ Organ Harvest There's More Where That Came From Challenges ------------ None Game ------ Seed GravityShockFirepult Manual? 0 Play Time 00:22:16 Cumulative 34.5 hours Start 2025.10.22 @ 22:46:00 End 2025.10.22 @ 23:11:50 Sessions 4 Manual Loads 0 Difficulty Rogue Special Mode None Game No. 38 Rogue 22 Adventurer 0 Explorer 16 Win Type - Total 0 Types 0/0/0/0/0/0/0/0/0/0 Lore% 5 Gallery% 21 Achievement% 15 Wizard Run 0 Options --------- Layout 1 ASCII 0 Keyboard 0 Movement Mouse Keybinds 0 Fullscreen 1 Font 20/Terminus Map View 64x48 Zoom Use 0% Tactical HUD 1 Map Filters NONE Filters NONE Steam 1 RUN: 94c354c6-4fb7-41dc-85a4-fef27d684152